fUSD/lending_fUSD_20240823
["ID","MTS","AMOUNT","RATE_DAILY","PERIOD"]
[335640722,1724398234160,-500.0,0.00010958,2]
[335640724,1724398234170,-1255.98,0.00010958,2]
[335640726,1724398234179,-500.0,0.00010958,2]
[335640728,1724398234189,-500.0,0.00010958,2]
[335640730,1724398234198,-4560.55,0.00010958,2]
[335640732,1724398234207,-500.0,0.00010958,2]
[335640734,1724398234217,-500.0,0.00010958,2]
[335640736,1724398234227,-500.0,0.00010958,2]
[335640738,1724398234236,-3581.9,0.00010958,2]
[335640740,1724398234245,-500.0,0.00010958,2]
[335640742,1724398234255,-850.74,0.00010958,2]
[335640744,1724398234264,-2198.92,0.00010958,2]
[335640746,1724398234274,-1561.95,0.00010958,2]
[335640748,1724398234283,-1561.95,0.00010958,2]
[335640750,1724398234292,-272.9430027,0.00010958,2]
[335640752,1724398234302,-1520.88,0.00010958,2]
[335640754,1724398234311,-3962.33,0.00010958,2]
[335640756,1724398234321,-500.0,0.00010958,2]
[335640758,1724398234330,-1590.28,0.00010958,2]
[335640760,1724398234340,-1590.28,0.00010958,2]
[335640762,1724398234349,-11975.57,0.00010958,2]
[335640764,1724398234359,-4584.616297,0.00010958,2]
[335640766,1724398234368,-4584.616297,0.00010958,2]
[335640768,1724398234377,-2704.233978,0.00010958,2]
[335640770,1724398234387,-2704.233978,0.00010958,2]
[335640772,1724398234396,-783.22,0.00010958,2]
[335640774,1724398234405,-783.22,0.00010958,2]
[335640776,1724398234415,-500.0,0.00010958,2]
[335640778,1724398234424,-3046.040688,0.00010958,2]
[335640780,1724398234434,-3046.040688,0.00010958,2]
[335640782,1724398234444,-12342.81,0.00010958,2]
[335640784,1724398234453,-500.0,0.00010958,2]
[335640786,1724398234463,-500.0,0.00010958,2]
[335640788,1724398234472,-5502.58,0.00010958,2]
[335640790,1724398234481,-8185.42,0.00010958,2]
[335640791,1724398234491,-8185.42,0.00010958,2]
[335640793,1724398234500,-500.0,0.00010958,2]
[335640795,1724398234509,-500.0,0.00010958,2]
[335640798,1724398234522,-500.0,0.00010958,2]
[335640800,1724398234531,-500.0,0.00010958,2]
[335640802,1724398234541,-500.0,0.00010958,2]
[335640804,1724398234551,-2390.96,0.00010958,2]
[335640805,1724398234560,-2390.96,0.00010958,2]
[335640807,1724398234569,-500.0,0.00010958,2]
[335640810,1724398234580,-500.0,0.00010958,2]
[335640811,1724398234589,-570.96105209,0.00010958,2]
[335640813,1724398234599,-500.0,0.00010958,2]
[335640815,1724398234609,-4885.1,0.00010958,2]
[335640817,1724398234618,-500.0,0.00010958,2]
[335640819,1724398234629,-1234.35,0.00010958,2]
[335640821,1724398234639,-1234.35,0.00010958,2]
[335640824,1724398234650,-1357.47,0.00010958,2]
[335640825,1724398234659,-1357.47,0.00010958,2]
[335640827,1724398234669,-500.0,0.00010958,2]
[335640829,1724398234679,-867.98,0.00010958,2]
[335640831,1724398234689,-614.78,0.00010958,2]
[335640833,1724398234698,-614.78,0.00010958,2]
[335640835,1724398234708,-1910.97,0.00010958,2]
[335640837,1724398234718,-1910.97,0.00010958,2]
[335640839,1724398234727,-152.573344,0.00010958,2]
[335640841,1724398234737,-150.080505,0.00010958,2]
[335640843,1724398234746,-152.573344,0.00010958,2]
[335640845,1724398234756,-150.080505,0.00010958,2]
[335640847,1724398234765,-2523.68,0.00010958,2]
[335640849,1724398234774,-2523.68,0.00010958,2]
[335640851,1724398234784,-736.55,0.00010958,2]
[335640853,1724398234793,-500.0,0.00010958,2]
[335640855,1724398234803,-500.0,0.00010958,2]
[335640857,1724398234813,-1997.49,0.00010958,2]
[335640859,1724398234822,-1997.49,0.00010958,2]
[335640861,1724398234832,-500.0,0.00010958,2]
[335640863,1724398234841,-522.03,0.00010958,2]
[335640865,1724398234851,-522.03,0.00010958,2]
[335640867,1724398234860,-234.47460568,0.00010958,2]
[335640869,1724398234870,-500.0,0.00010958,2]
[335640871,1724398234879,-500.0,0.00010958,2]
[335640873,1724398234889,-500.0,0.00010958,2]
[335640875,1724398234899,-500.0,0.00010958,2]
[335640877,1724398234909,-1505.46,0.00010958,2]
[335640879,1724398234918,-816.11,0.00010958,2]
[335640881,1724398234927,-1147.12,0.00010958,2]
[335640883,1724398234937,-816.11,0.00010958,2]
[335640885,1724398234946,-1147.12,0.00010958,2]
[335640887,1724398234956,-1400.79,0.00010958,2]
[335640889,1724398234966,-500.0,0.00010958,2]
[335640891,1724398234975,-500.0,0.00010958,2]
[335640892,1724398234985,-500.0,0.00010958,2]
[335640894,1724398234995,-500.0,0.00010958,2]
[335640896,1724398235004,-500.0,0.00010958,2]
[335640898,1724398235014,-1233.29,0.00010958,2]
[335640900,1724398235023,-506.14023449,0.00010958,2]
[335640902,1724398235033,-1233.29,0.00010958,2]
[335640904,1724398235043,-500.0,0.00010958,2]
[335640906,1724398235052,-500.0,0.00010958,2]
[335640908,1724398235062,-1031.55,0.00010958,2]
[335640910,1724398235072,-1031.55,0.00010958,2]
[335640912,1724398235081,-1195.92,0.00010958,2]
[335640914,1724398235091,-1195.92,0.00010958,2]
[335640916,1724398235100,-500.0,0.00010958,2]
[335640918,1724398235110,-500.0,0.00010958,2]
[335640920,1724398235119,-500.0,0.00010958,2]
[335640922,1724398235128,-500.0,0.00010958,2]
[335640924,1724398235138,-500.0,0.00010958,2]
[335640926,1724398235148,-500.0,0.00010958,2]
[335640928,1724398235160,-500.0,0.00010958,2]
[335640930,1724398235170,-1035.31,0.00010958,2]
[335640932,1724398235179,-1035.31,0.00010958,2]
[335640934,1724398235189,-500.0,0.00010958,2]
[335640935,1724398235198,-500.0,0.00010958,2]
[335640936,1724398235208,-605.01,0.00010958,2]
[335640937,1724398235217,-605.01,0.00010958,2]
[335640938,1724398235226,-635.56,0.00010958,2]
[335640939,1724398235235,-2320.74,0.00010958,2]
[335640940,1724398235244,-2320.74,0.00010958,2]
[335640941,1724398235254,-500.0,0.00010958,2]
[335640942,1724398235263,-500.0,0.00010958,2]
[335640943,1724398235273,-500.0,0.00010958,2]
[335640944,1724398235282,-1256.49,0.00010958,2]
[335640945,1724398235291,-1256.49,0.00010958,2]
[335640946,1724398235301,-500.0,0.00010958,2]
[335640947,1724398235310,-500.0,0.00010958,2]
[335640948,1724398235320,-500.0,0.00010958,2]
[335640949,1724398235330,-3880.5,0.00010958,2]
[335640950,1724398235340,-500.0,0.00010958,2]
[335640951,1724398235350,-500.0,0.00010958,2]
[335640952,1724398235360,-1004.12,0.00010958,2]
[335640953,1724398235369,-1004.12,0.00010958,2]
[335640954,1724398235379,-1384.54,0.00010958,2]
[335640956,1724398235388,-1384.54,0.00010958,2]
[335640958,1724398235397,-500.0,0.00010958,2]
[335640960,1724398235406,-500.0,0.00010958,2]
[335640962,1724398235416,-500.0,0.00010958,2]
[335640964,1724398235424,-500.0,0.00010958,2]
[335640966,1724398235434,-500.0,0.00010958,2]
[335640967,1724398235444,-500.0,0.00010958,2]
[335640969,1724398235453,-500.0,0.00010958,2]
[335640970,1724398235463,-536.81432862,0.00010958,2]
[335640972,1724398235472,-500.0,0.00010958,2]
[335640974,1724398235482,-1688.95,0.00010958,2]
[335640976,1724398235491,-500.0,0.00010958,2]
[335640978,1724398235501,-1688.95,0.00010958,2]
[335640980,1724398235510,-500.0,0.00010958,2]
[335640982,1724398235520,-500.0,0.00010958,2]
[335640984,1724398235530,-500.0,0.00010958,2]
[335640985,1724398235540,-1639.25,0.00010958,2]
[335640987,1724398235549,-1639.25,0.00010958,2]
[335640989,1724398235559,-1251.81,0.00010958,2]
[335640991,1724398235569,-500.0,0.00010958,2]
[335640993,1724398235578,-636.23,0.00010958,2]
[335640995,1724398235588,-500.0,0.00010958,2]
[335640997,1724398235597,-920.56,0.00010958,2]
[335640999,1724398235610,-636.23,0.00010958,2]
[335641001,1724398235620,-920.56,0.00010958,2]
[335641003,1724398235629,-500.0,0.00010958,2]
[335641005,1724398235638,-500.0,0.00010958,2]
[335641007,1724398235648,-500.0,0.00010958,2]
[335641009,1724398235658,-500.0,0.00010958,2]
[335641011,1724398235668,-500.0,0.00010958,2]
[335641013,1724398235677,-500.0,0.00010958,2]
[335641015,1724398235686,-533.37592642,0.00010958,2]
[335641017,1724398235696,-1489.33,0.00010958,2]
[335641019,1724398235705,-1489.33,0.00010958,2]
[335641021,1724398235716,-500.0,0.00010958,2]
[335641023,1724398235725,-500.0,0.00010958,2]
[335641024,1724398235734,-868.54,0.00010958,2]
[335641026,1724398235744,-868.54,0.00010958,2]
[335641028,1724398235753,-500.0,0.00010958,2]
[335641030,1724398235763,-500.0,0.00010958,2]
[335641032,1724398235777,-500.0,0.00010958,2]
[335641034,1724398235787,-500.0,0.00010958,2]
[335641036,1724398235796,-500.0,0.00010958,2]
[335641038,1724398235805,-1178.09,0.00010958,2]
[335641040,1724398235814,-1178.09,0.00010958,2]
[335641042,1724398235823,-500.0,0.00010958,2]
[335641044,1724398235833,-500.0,0.00010958,2]
[335641046,1724398235842,-500.0,0.00010958,2]
[335641048,1724398235851,-500.0,0.00010958,2]
[335641050,1724398235861,-500.0,0.00010958,2]
[335641052,1724398235870,-500.0,0.00010958,2]
[335641053,1724398235879,-500.0,0.00010958,2]
[335641055,1724398235889,-500.0,0.00010958,2]
[335641057,1724398235898,-911.73,0.00010958,2]
[335641059,1724398235907,-911.73,0.00010958,2]
[335641061,1724398235917,-746.13,0.00010959,2]
[335641063,1724398235926,-500.0,0.00010973,2]
[335641065,1724398235936,-401.62337545,0.00010979,2]
[335641067,1724398235945,-500.0,0.00010985,2]
[335641069,1724398235955,-931.8,0.00010986,2]
[335641070,1724398235964,-500.0,0.00010986,2]
[335641072,1724398235974,-500.0,0.00010986,2]
[335641074,1724398235983,-500.0,0.00010986,2]
[335641076,1724398235993,-500.0,0.00010986,2]
[335641078,1724398236002,-500.0,0.00010986,2]
[335641080,1724398236011,-500.0,0.00010986,2]
[335641081,1724398236020,-500.0,0.00010986,2]
[335641083,1724398236030,-890.02,0.00010986,2]
[335641085,1724398236039,-402.43,0.00010986,2]
[335641087,1724398236048,-805.58,0.00010986,2]
[335641089,1724398236057,-500.0,0.00010986,2]
[335641091,1724398236066,-500.0,0.00010986,2]
[335641093,1724398236075,-500.0,0.00010986,2]
[335641095,1724398236084,-500.0,0.00010986,2]
[335641097,1724398236093,-500.0,0.00010986,2]
[335641098,1724398236102,-500.0,0.00010986,2]
[335641100,1724398236112,-896.72,0.00010986,2]
[335641102,1724398236121,-500.0,0.00010986,2]
[335641104,1724398236130,-500.0,0.00010986,2]
[335641106,1724398236139,-500.0,0.00010986,2]
[335641108,1724398236149,-500.0,0.00010986,2]
[335641110,1724398236159,-934.63,0.00010986,2]
[335641112,1724398236169,-500.0,0.00010986,2]
[335641114,1724398236177,-1659.37,0.00010986,2]
[335641115,1724398236186,-500.0,0.00010986,2]
[335641117,1724398236197,-682.5,0.00010986,2]
[335641119,1724398236206,-500.0,0.00010986,2]
[335641121,1724398236216,-500.0,0.00010986,2]
[335641123,1724398236224,-553.44815819,0.00010986,2]
[335641125,1724398236235,-275.89690821,0.00010986,2]
[335641127,1724398236244,-500.0,0.00010986,2]
[335641129,1724398236254,-500.0,0.00010986,2]
[335641131,1724398236262,-545.20028209,0.00010986,2]
[335641133,1724398236273,-362.14738132,0.00010986,2]
[335641135,1724398236282,-500.0,0.00010986,2]
[335641136,1724398236291,-500.0,0.00010986,2]
[335641138,1724398236300,-635.10388058,0.00010986,2]
[335641140,1724398236309,-1873.98,0.00010986,2]
[335641142,1724398236318,-500.0,0.00010986,2]
[335641144,1724398236327,-500.0,0.00010986,2]
[335641146,1724398236337,-500.0,0.00010986,2]
[335641148,1724398236346,-500.0,0.00010986,2]
[335641150,1724398236355,-500.0,0.00010986,2]
[335641152,1724398236364,-728.29,0.00010986,2]
[335641153,1724398236373,-500.0,0.00010986,2]
[335641155,1724398236382,-500.0,0.00010986,2]
[335641157,1724398236391,-500.0,0.00010986,2]
[335641159,1724398236400,-500.0,0.00010986,2]
[335641161,1724398236409,-500.0,0.00010986,2]
[335641163,1724398236418,-500.0,0.00010986,2]
[335641165,1724398236427,-500.0,0.00010986,2]
[335641167,1724398236436,-500.0,0.00010986,2]
[335641169,1724398236447,-500.0,0.00010986,2]
[335641171,1724398236458,-500.0,0.00010986,2]
[335641173,1724398236468,-500.0,0.00010986,2]
[335641175,1724398236478,-500.0,0.00010986,2]
[335641177,1724398236487,-500.0,0.00010986,2]
[335641179,1724398236496,-500.0,0.00010986,2]
[335641181,1724398236505,-1255.98,0.00010986,2]
[335641182,1724398236514,-500.0,0.00010986,2]
[335641184,1724398236524,-4560.55,0.00010986,2]
[335641186,1724398236533,-500.0,0.00010986,2]
[335641188,1724398236542,-3581.9,0.00010986,2]
[335641190,1724398236552,-500.0,0.00010986,2]
[335641192,1724398236561,-850.74,0.00010986,2]
[335641194,1724398236570,-2198.92,0.00010986,2]
[335641195,1724398236580,-1520.88,0.00010986,2]
[335641197,1724398236589,-3962.33,0.00010986,2]
[335641199,1724398236598,-500.0,0.00010986,2]
[335641201,1724398236608,-11975.57,0.00010986,2]
[335641203,1724398236618,-500.0,0.00010986,2]
[335641205,1724398236627,-12342.81,0.00010986,2]
[335641207,1724398236636,-5502.58,0.00010986,2]
[335641209,1724398236645,-500.0,0.00010986,2]
[335641211,1724398236655,-500.0,0.00010986,2]
[335641213,1724398236664,-500.0,0.00010986,2]
[335641215,1724398236673,-500.0,0.00010986,2]
[335641216,1724398236682,-4885.1,0.00010986,2]
[335641218,1724398236691,-499.73209482,0.00010986,2]
[335641220,1724398236703,-1234.35,0.00010986,2]
[335641222,1724398236712,-500.0,0.00010986,2]
[335641224,1724398236722,-867.98,0.00010986,2]
[335641226,1724398236731,-614.78,0.00010986,2]
[335641228,1724398236740,-1910.97,0.00010986,2]
[335641230,1724398236750,-736.55,0.00010986,2]
[335641232,1724398236759,-500.0,0.00010986,2]
[335641234,1724398236769,-1997.49,0.00010986,2]
[335641236,1724398236778,-500.0,0.00010986,2]
[335641238,1724398236787,-500.0,0.00010986,2]
[335641240,1724398236796,-500.0,0.00010986,2]
[335641241,1724398236806,-500.0,0.00010986,2]
[335641243,1724398236815,-1505.46,0.00010986,2]
[335641245,1724398236824,-816.11,0.00010986,2]
[335641247,1724398236833,-1147.12,0.00010986,2]
[335641249,1724398236843,-1400.79,0.00010986,2]
[335641251,1724398236852,-500.0,0.00010986,2]
[335641253,1724398236861,-1233.29,0.00010986,2]
[335641255,1724398236870,-1031.55,0.00010986,2]
[335641257,1724398236879,-500.0,0.00010986,2]
[335641259,1724398236889,-498.44949228,0.00010986,2]
[335641261,1724398236898,-1035.31,0.00010986,2]
[335641263,1724398236907,-500.0,0.00010986,2]
[335641265,1724398236916,-605.01,0.00010986,2]
[335641267,1724398236925,-635.56,0.00010986,2]
[335641269,1724398236934,-2320.74,0.00010986,2]
[335641270,1724398236946,-500.0,0.00010986,2]
[335641272,1724398236956,-500.0,0.00010986,2]
[335641274,1724398236965,-1256.49,0.00010986,2]
[335641276,1724398236975,-500.0,0.00010986,2]
[335641278,1724398236984,-3880.5,0.00010986,2]
[335641280,1724398236993,-1004.12,0.00010986,2]
[335641282,1724398237002,-1384.54,0.00010986,2]
[335641284,1724398237012,-500.0,0.00010986,2]
[335641286,1724398237022,-500.0,0.00010986,2]
[335641288,1724398237032,-500.0,0.00010986,2]
[335641290,1724398237043,-1688.95,0.00010986,2]
[335641292,1724398237052,-152.96232713,0.00010986,2]
[335641294,1724398237062,-1251.81,0.00010986,2]
[335641296,1724398237071,-1639.25,0.00010986,2]
[335641298,1724398237081,-920.56,0.00010986,2]
[335641300,1724398237090,-500.0,0.00010986,2]
[335641302,1724398237099,-500.0,0.00010986,2]
[335641304,1724398237108,-1489.33,0.00010986,2]
[335641306,1724398237117,-868.54,0.00010986,2]
[335641308,1724398237126,-500.0,0.00010986,2]
[335641310,1724398237135,-1178.09,0.00010986,2]
[335641312,1724398237145,-500.0,0.00010986,2]
[335641313,1724398237158,-500.0,0.00010986,2]
[335641315,1724398237167,-500.0,0.00010986,2]
[335641317,1724398237176,-500.0,0.00010987,2]
[335641319,1724398237186,-500.0,0.00010987,2]
[335641321,1724398237197,-500.0,0.00010987,2]
[335641323,1724398237207,-968.88,0.00010987,2]
[335641325,1724398237217,-500.0,0.00010987,2]
[335641327,1724398237227,-500.0,0.00010987,2]
[335641329,1724398237236,-500.0,0.00010987,2]
[335641331,1724398237245,-500.0,0.00010987,2]
[335641333,1724398237254,-500.0,0.00010987,2]
[335641335,1724398237264,-500.0,0.00010987,2]
[335641337,1724398237274,-500.0,0.00010987,2]
[335641339,1724398237283,-500.0,0.00010987,2]
[335641341,1724398237292,-500.0,0.00010987,2]
[335641343,1724398237302,-500.0,0.00010987,2]
[335641345,1724398237312,-500.0,0.00010987,2]
[335641347,1724398237321,-500.0,0.00010987,2]
[335641349,1724398237330,-500.0,0.00010987,2]
[335641351,1724398237339,-500.0,0.00010987,2]
[335641352,1724398237349,-500.0,0.00010987,2]
[335641354,1724398237358,-26035.6,0.00010987,2]
[335641356,1724398237368,-4243.74,0.00010987,2]
[335641358,1724398237377,-855.85,0.00010987,2]
[335641360,1724398237386,-500.0,0.00010987,2]
[335641362,1724398237395,-592.23,0.00010987,2]
[335641364,1724398237405,-500.0,0.00010987,2]
[335641365,1724398237414,-516.36,0.00010987,2]
[335641367,1724398237423,-361.62340716,0.00010987,2]
[335641369,1724398237433,-584.88,0.00010987,2]
[335641371,1724398237442,-500.0,0.00010987,2]
[335641373,1724398237452,-1063.84,0.00010987,2]
[335641374,1724398237461,-500.87595599,0.00010987,2]
[335641376,1724398237471,-500.0,0.00010987,2]
[335641378,1724398237480,-500.0,0.00010987,2]
[335641380,1724398237489,-500.0,0.00010987,2]
[335641382,1724398237499,-1561.95,0.00010987,2]
[335641384,1724398237508,-500.0,0.00010987,2]
[335641386,1724398237517,-1590.28,0.00010987,2]
[335641388,1724398237526,-4584.616297,0.00010987,2]
[335641389,1724398237535,-2704.233978,0.00010987,2]
[335641391,1724398237544,-783.22,0.00010987,2]
[335641393,1724398237554,-3046.040688,0.00010987,2]
[335641395,1724398237564,-500.0,0.00010987,2]
[335641397,1724398237573,-500.0,0.00010987,2]
[335641399,1724398237583,-8185.42,0.00010987,2]
[335641401,1724398237593,-500.0,0.00010987,2]
[335641403,1724398237603,-2390.96,0.00010987,2]
[335641405,1724398237612,-500.0,0.00010987,2]
[335641407,1724398237621,-500.0,0.00010987,2]
[335641409,1724398237631,-500.0,0.00010987,2]
[335641411,1724398237640,-1357.47,0.00010987,2]
[335641412,1724398237650,-152.573344,0.00010987,2]
[335641414,1724398237660,-2523.68,0.00010987,2]
[335641416,1724398237669,-522.03,0.00010987,2]
[335641441,1724398237870,-500.0,0.00010987,2]
[335641444,1724398237881,-545.9134086,0.00010987,2]
[335641447,1724398237891,-500.0,0.00010987,2]
[335641450,1724398237901,-500.0,0.00010987,2]
[335641452,1724398237910,-500.0,0.00010987,2]
[335641454,1724398237920,-1195.92,0.00010987,2]
[335641457,1724398237930,-500.0,0.00010987,2]
[335641460,1724398237939,-500.0,0.00010987,2]
[335641463,1724398237949,-500.0,0.00010987,2]
[335641465,1724398237958,-500.0,0.00010987,2]
[335641467,1724398237967,-500.0,0.00010987,2]
[335641468,1724398237977,-500.0,0.00010987,2]
[335641470,1724398237986,-500.0,0.00010987,2]
[335641472,1724398237996,-500.0,0.00010987,2]
[335641474,1724398238006,-500.0,0.00010987,2]
[335641475,1724398238015,-500.0,0.00010987,2]
[335641476,1724398238026,-171.05289678,0.00010987,2]
[335641477,1724398238035,-636.23,0.00010987,2]
[335641478,1724398238045,-500.0,0.00010987,2]
[335641479,1724398238055,-500.0,0.00010987,2]
[335641481,1724398238064,-500.0,0.00010987,2]
[335641483,1724398238073,-500.0,0.00010987,2]
[335641485,1724398238083,-500.0,0.00010987,2]
[335641487,1724398238093,-500.0,0.00010988,2]
[335641489,1724398238103,-501.42052847,0.00010988,2]
[335641491,1724398238112,-502.00123696,0.00010988,2]
[335641493,1724398238122,-500.0,0.00010988,2]
[335641495,1724398238131,-500.0,0.00010988,2]
[335641497,1724398238141,-500.0,0.00010988,2]
[335641499,1724398238155,-500.0,0.00010988,2]
[335641500,1724398238164,-500.0,0.00010988,2]
[335641502,1724398238174,-500.0,0.00010988,2]
[335641504,1724398238183,-500.0,0.00010988,2]
[335641506,1724398238194,-500.0,0.00010988,2]
[335641508,1724398238204,-500.0,0.00010988,2]
[335641510,1724398238213,-500.68798645,0.00010988,2]
[335641512,1724398238223,-500.0,0.00010988,2]
[335641514,1724398238233,-401.05506442,0.00010988,2]
[335641516,1724398238244,-219.35827866,0.00010988,2]
[335641518,1724398238253,-500.0,0.00010988,2]
[335641520,1724398238262,-570.55,0.00010988,2]
[335641522,1724398238273,-500.0,0.00010988,2]
[335641524,1724398238282,-660.76,0.00010988,2]
[335641526,1724398238291,-500.0,0.00010988,2]
[335641528,1724398238301,-500.0,0.00010988,2]
[335641530,1724398238310,-1407.6,0.00010988,2]
[335641532,1724398238320,-782.76,0.00010988,2]
[335641534,1724398238329,-500.0,0.00010988,2]
[335641536,1724398238338,-612.95,0.00010988,2]
[335641538,1724398238348,-500.0,0.00010988,2]
[335641540,1724398238357,-1088.74,0.00010988,2]
[335641542,1724398238366,-500.0,0.00010988,2]
[335641544,1724398238375,-545.68,0.00010988,2]
[335641545,1724398238385,-532.06,0.00010988,2]
[335641547,1724398238394,-500.0,0.00010988,2]
[335641549,1724398238404,-500.0,0.00010988,2]
[335641551,1724398238413,-500.0,0.00010988,2]
[335641553,1724398238423,-916.84,0.00010988,2]
[335641555,1724398238432,-500.0,0.00010988,2]
[335641557,1724398238442,-500.0,0.00010988,2]
[335641559,1724398238452,-500.0,0.00010988,2]
[335641561,1724398238461,-500.0,0.00010988,2]
[335641563,1724398238470,-500.0,0.00010988,2]
[335641565,1724398238480,-500.0,0.00010988,2]
[335641567,1724398238489,-518.61,0.00010988,2]
[335641569,1724398238498,-500.0,0.00010988,2]
[335641571,1724398238508,-500.0,0.00010988,2]
[335641573,1724398238518,-500.0,0.00010988,2]
[335641575,1724398238528,-500.0,0.00010988,2]
[335641577,1724398238537,-500.0,0.00010988,2]
[335641579,1724398238547,-500.0,0.00010988,2]
[335641581,1724398238556,-500.0,0.00010988,2]
[335641583,1724398238565,-485.6993547,0.00010988,2]
[335641585,1724398238575,-500.0,0.00010988,2]
[335641587,1724398238585,-500.0,0.00010988,2]
[335641589,1724398238594,-500.0,0.00010988,2]
[335641591,1724398238604,-500.0,0.00010988,2]
[335641593,1724398238614,-500.0,0.00010988,2]
[335641595,1724398238624,-500.0,0.00010988,2]
[335641597,1724398238633,-500.0,0.00010988,2]
[335641599,1724398238643,-500.0,0.00010988,2]
[335641601,1724398238652,-500.0,0.00010988,2]
[335641603,1724398238662,-198.57034411,0.00010988,2]
[335641605,1724398238671,-500.0,0.00010988,2]
[335641607,1724398238681,-500.0,0.00010988,2]
[335641609,1724398238690,-500.0,0.00010988,2]
[335641611,1724398238700,-500.0,0.00010988,2]
[335641612,1724398238709,-500.0,0.00010988,2]
[335641614,1724398238719,-500.0,0.00010988,2]
[335641616,1724398238729,-500.0,0.00010988,2]
[335641618,1724398238739,-500.0,0.00010988,2]
[335641621,1724398238748,-500.0,0.00010988,2]
[335641623,1724398238758,-500.0,0.00010988,2]
[335641625,1724398238770,-500.0,0.00010988,2]
[335641627,1724398238785,-500.0,0.00010988,2]
[335641629,1724398238794,-500.0,0.00010988,2]
[335641630,1724398238804,-500.0,0.00010988,2]
[335641632,1724398238814,-500.0,0.00010988,2]
[335641635,1724398238824,-500.0,0.00010988,2]
[335641637,1724398238833,-500.0,0.00010988,2]
[335641638,1724398238842,-500.0,0.00010988,2]
[335641640,1724398238852,-500.0,0.00010988,2]
[335641642,1724398238861,-506.97561447,0.00010988,2]
[335641644,1724398238870,-500.0,0.00010988,2]
[335641646,1724398238880,-500.0,0.00010988,2]
[335641648,1724398238889,-500.0,0.00010988,2]
[335641650,1724398238898,-500.0,0.00010988,2]
[335641652,1724398238907,-500.0,0.00010988,2]
[335641654,1724398238917,-500.0,0.00010988,2]
[335641656,1724398238926,-500.0,0.00010988,2]
[335641658,1724398238935,-500.0,0.00010988,2]
[335641660,1724398238944,-500.0,0.00010988,2]
[335641662,1724398238953,-401.45226074,0.00010988,2]
[335641664,1724398238963,-500.0,0.00010988,2]
[335641666,1724398238972,-150.0,0.00010988,2]
[335641668,1724398238981,-500.0,0.00010988,2]
[335641670,1724398238991,-504.97102548,0.00010988,2]
[335641672,1724398239000,-500.0,0.00010988,2]
[335641674,1724398239009,-5000.0,0.00010988,2]
[335641676,1724398239019,-500.0,0.00010988,2]
[335641678,1724398239029,-500.0,0.00010988,2]
[335641680,1724398239038,-500.0,0.00010988,2]
[335641682,1724398239047,-500.0,0.00010988,2]
[335641684,1724398239056,-512.23391139,0.00010988,2]
[335641686,1724398239065,-500.0,0.00010988,2]
[335641688,1724398239074,-500.0,0.00010988,2]
[335641690,1724398239083,-500.0,0.00010988,2]
[335641691,1724398239092,-500.0,0.00010988,2]
[335641693,1724398239101,-528.23664275,0.00010988,2]
[335641695,1724398239111,-500.0,0.00010988,2]